bitfinex/quotes_ETHUSD_20241212
["timestamp","ask_amount","ask_price","bid_price","bid_amount"]
[1734023849248,4.3318,3942.9,3942.6,0.25]
[1734023849479,2.13567795,3942.7,3942.6,0.25]
[1734023849775,1.38355705,3942.7,3942.6,0.25]
[1734023849950,3.49757086,3942.7,3942.6,0.25]
[1734023850152,2.63387122,3942.7,3942.6,0.25]
[1734023850350,4.00447394,3942.7,3942.6,0.25]
[1734023851279,5.58954052,3942.7,3942.6,0.25]
[1734023851975,4.00401687,3942.7,3942.6,0.25]
[1734023852172,4.01829552,3942.7,3942.6,0.25]
[1734023852676,4.00401687,3942.7,3942.5,0.00594372]
[1734023852876,5.46120403,3942.6,3942.5,0.00594372]
[1734023853377,3.87679308,3942.6,3942.5,0.00594372]
[1734023855195,2.63341415,3942.6,3942.5,0.00594372]
[1734023855385,1.0561738,3942.8,3942.6,0.25]
[1734023855589,1.0561738,3942.8,3942.5,0.00594372]
[1734023855590,1.24919479,3942.9,3942.8,0.25]
[1734023855789,1.18368164,3943.0,3942.8,0.25]
[1734023855990,0.12750784,3943.0,3942.9,0.25]
[1734023856198,0.96009958,3943.0,3942.9,0.25]
[1734023856583,1.51009958,3943.0,3942.9,0.25]
[1734023856981,2.56579452,3943.0,3942.9,0.25]
[1734023858379,3.81468645,3943.0,3942.9,0.25]
[1734023858582,2.56579452,3943.0,3942.9,0.25]
[1734023858908,3.81468645,3943.0,3942.9,0.25]
[1734023859080,4.56608998,3943.0,3942.9,0.25]
[1734023859277,3.51039504,3943.0,3942.9,0.25]
[1734023859488,4.34340246,3943.0,3942.9,0.25]
[1734023859695,2.75899151,3943.0,3942.9,0.25]
[1734023859899,1.50979881,3943.0,3942.9,0.25]
[1734023860101,2.75823527,3943.0,3942.9,0.25]
[1734023860303,4.34264622,3943.0,3942.9,0.25]
[1734023860812,2.63072743,3943.0,3942.9,0.25]
[1734023860982,4.21513838,3943.0,3942.9,0.25]
[1734023861373,3.59970955,3943.0,3942.9,0.25]
[1734023861579,2.76741858,3943.0,3942.9,0.25]
[1734023861799,3.59970955,3943.0,3942.9,0.25]
[1734023862109,3.26373506,3943.0,3942.9,0.25]
[1734023862539,3.27801371,3943.0,3942.6,0.25]
[1734023862724,1.60536356,3942.7,3942.6,0.5]
[1734023863035,2.98098057,3942.7,3942.6,0.5]
[1734023863414,4.22941703,3942.7,3942.6,0.25]
[1734023863625,2.63072743,3942.7,3942.6,0.25]
[1734023863831,3.45290007,3942.7,3942.6,0.25]
[1734023864140,5.03731102,3942.7,3942.6,0.25]
[1734023864337,5.05107626,3942.7,3942.6,0.25]
[1734023864536,5.03679761,3942.7,3942.6,0.25]
[1734023865907,3.55,3942.6,3942.5,0.00594372]
[1734023866133,9.2478111,3942.6,3942.5,0.00594372]
[1734023866352,3.66347584,3942.6,3942.5,1.01124372]
[1734023866653,1.05558909,3942.9,3942.5,1.01124372]
[1734023866806,2.30392193,3943.0,3942.9,0.25]
[1734023867005,1.88785357,3943.0,3942.9,0.25]
[1734023867229,1.05558909,3943.0,3942.9,0.5]
[1734023867431,2.08059732,3943.0,3942.9,0.5]
[1734023867640,0.83226448,3943.0,3942.9,0.5]
[1734023868246,3.13597341,3943.2,3943.1,0.25]
[1734023868407,3.1359708,3943.2,3943.1,0.25]
[1734023868609,3.13612935,3943.2,3943.1,0.25]
[1734023868921,2.08054026,3943.2,3943.1,0.25]
[1734023869113,2.63054026,3943.2,3943.1,0.25]
[1734023869934,4.21380208,3943.2,3943.1,0.25]
[1734023870137,5.31311941,3943.2,3943.1,0.25]
[1734023870438,3.72985759,3943.2,3943.1,0.25]
[1734023870819,1.3468,3943.1,3942.6,0.25]
[1734023871136,1.60536103,3942.8,3942.7,0.25]
[1734023871344,2.43757713,3942.8,3942.7,0.25]
[1734023871658,3.68590129,3942.8,3942.7,0.25]
[1734023872040,2.43757713,3942.8,3942.7,0.25]
[1734023872240,1.3822161,3942.8,3942.7,0.25]
[1734023872672,2.63054026,3942.8,3942.7,0.25]
[1734023872865,1.3822161,3942.8,3942.7,0.25]
[1734023873159,0.55,3942.8,3942.7,0.25]
[1734023873758,2.62989195,3942.8,3942.7,0.25]
[1734023874324,2.62976808,3942.8,3942.7,0.25]
[1734023874753,1.38195678,3942.8,3942.7,0.25]
[1734023875141,0.55,3942.8,3942.7,0.25]
[1734023875461,3.0,3943.5,3943.4,0.25]
[1734023875661,9.25,3943.6,3943.4,0.5]
[1734023875865,10.71015,3943.6,3943.4,0.5]
[1734023876239,2.08002086,3943.5,3943.4,0.5]
[1734023876461,3.66308636,3943.5,3943.4,0.5]
[1734023876828,4.21308636,3943.5,3943.4,0.5]
[1734023877229,4.2941885,3943.5,3943.4,0.5]
[1734023877435,6.504692,3943.5,3943.4,0.5]
[1734023877640,6.63328566,3943.5,3943.4,0.5]
[1734023877970,8.74403967,3943.5,3943.4,0.5]
[1734023878956,8.74403967,3943.5,3943.4,0.25]
[1734023879161,8.74403967,3943.5,3943.4,0.5]
[1734023879337,4.42278216,3943.5,3943.4,0.5]
[1734023879544,4.35643562,3943.5,3943.4,0.5]
[1734023879745,4.43734301,3943.5,3943.4,0.5]
[1734023880050,4.42306436,3943.5,3943.4,0.5]
[1734023880255,6.53381837,3943.5,3943.4,0.5]
[1734023880554,8.53107527,3943.5,3943.4,0.5]
[1734023880752,6.42032126,3943.5,3943.4,0.5]
[1734023880981,4.34005148,3943.5,3943.4,0.5]
[1734023881192,8.53231424,3943.5,3943.4,0.5]
[1734023882889,6.42156023,3943.5,3943.4,0.5]
[1734023883043,4.42430333,3943.5,3943.4,0.5]
[1734023883249,4.34459488,3943.5,3943.4,0.5]
[1734023883445,4.42542038,3943.5,3943.4,0.5]
[1734023883757,4.21604731,3943.5,3943.4,0.5]
[1734023884386,4.23032596,3943.5,3943.4,0.5]
[1734023884597,6.2084661,3943.5,3943.4,0.5]
[1734023884880,6.19418745,3943.5,3943.4,0.5]
[1734023885066,6.19366688,3943.5,3943.4,0.5]
[1734023885279,6.32323571,3943.5,3943.4,0.5]
[1734023885449,2.76055701,3943.5,3943.4,0.5]
[1734023885642,4.35937422,3943.5,3943.4,0.5]
[1734023886127,4.42548927,3943.5,3943.4,0.5]
[1734023886599,4.34404123,3943.5,3943.4,0.5]
[1734023886943,2.77483566,3943.5,3943.4,0.5]
[1734023887147,4.34404123,3943.5,3943.4,0.5]
[1734023887396,6.18051552,3943.5,3943.4,0.5]
[1734023888210,2.76055701,3943.5,3943.4,1.3297]
[1734023888370,2.77483566,3943.5,3943.4,1.3297]
[1734023888547,3.83022592,3943.5,3943.4,1.3297]
[1734023888752,2.77483566,3943.5,3943.4,1.3297]
[1734023890057,3.83007484,3943.5,3943.4,1.3297]
[1734023890663,2.77483566,3943.5,3943.4,1.3297]
[1734023891369,0.55,3943.5,3943.4,1.3297]
[1734023895026,0.56427865,3943.5,3943.4,0.5]
[1734023895324,1.39570664,3943.5,3943.4,0.5]
[1734023895725,4.11164154,3943.5,3943.4,0.5]
[1734023895878,3.0882667,3943.5,3943.4,0.5]
[1734023896204,5.69398415,3943.5,3943.4,0.5]
[1734023896700,0.8187,3943.3,3943.2,0.5]
[1734023896901,2.21427426,3943.3,3943.2,0.5]
[1734023897065,7.12089649,3943.3,3943.2,0.5]
[1734023897266,7.10632926,3943.3,3943.2,0.5]
[1734023897896,5.52531493,3943.3,3943.2,0.5]
[1734023898185,7.10632926,3943.3,3943.2,0.5]
[1734023898775,1.79694342,3943.3,3943.2,1.2611]
[1734023898979,1.58101433,3943.4,3943.2,1.2611]
[1734023898980,0.01427865,3943.4,3943.2,1.2611]
[1734023899175,0.55,3943.5,3943.2,1.2611]
[1734023899374,0.55,3943.5,3943.4,0.25]
[1734023899574,1.38087997,3943.5,3943.4,0.25]
[1734023899792,1.39515862,3943.5,3943.4,0.25]
[1734023899964,1.38087997,3943.5,3943.4,0.25]
[1734023900394,1.38088949,3943.5,3943.4,0.25]
[1734023901689,1.38092557,3943.5,3943.4,0.25]
[1734023902012,1.38092557,3943.5,3943.4,0.5]
[1734023902169,0.56427865,3943.5,3943.4,0.5]
[1734023903005,1.39539338,3943.5,3943.4,0.5]
[1734023903210,2.89100664,3943.5,3943.4,0.5]
[1734023904671,2.89100664,3943.5,3943.4,0.25]
[1734023904672,3.70970664,3943.5,3943.4,0.25]
[1734023904871,6.61849994,3943.5,3943.4,0.25]
[1734023905172,8.71413496,3943.5,3943.4,0.25]
[1734023905377,6.60422129,3943.5,3943.4,0.25]
[1734023905683,8.71294349,3943.5,3943.4,0.25]
[1734023906408,8.71294349,3943.5,3942.7,0.5]
[1734023906409,3.0,3943.4,3942.7,0.5]
[1734023906610,0.8249,3942.7,3942.5,0.5]
[1734023906781,0.8249,3942.7,3942.5,0.25]
[1734023906782,3.25622967,3942.6,3942.5,0.25]
[1734023906982,5.86114983,3942.6,3942.3,0.25]
[1734023907314,0.55,3942.4,3942.3,0.25]
[1734023907476,4.73692351,3942.4,3942.3,0.25]
[1734023907672,4.73692351,3942.4,3942.1,0.5]
[1734023907872,0.55,3942.2,3942.1,0.5]
[1734023908082,1.38106502,3942.2,3942.1,0.5]
[1734023908312,3.73452153,3942.2,3942.1,0.25]
[1734023908496,3.39938397,3942.2,3942.1,0.5]
[1734023908996,3.39921604,3942.2,3942.1,0.5]
[1734023909194,3.20671444,3942.2,3942.1,0.5]
[1734023909396,4.45321121,3942.2,3942.1,0.5]
[1734023913218,3.39921604,3942.2,3942.1,0.5]
[1734023913416,2.15280708,3942.2,3942.1,0.5]
[1734023916503,0.55,3942.2,3942.1,0.5]
[1734023916880,1.38094251,3942.2,3942.1,0.5]
[1734023917201,1.3809665,3942.2,3942.1,0.5]
[1734023917427,0.55,3942.2,3942.1,0.5]
[1734023917589,0.55,3942.3,3942.1,0.5]
[1734023917790,1.13647916,3942.2,3942.1,0.5]
[1734023918020,0.55,3942.2,3942.1,0.5]
[1734023918227,0.55,3942.3,3942.1,0.5]
[1734023918405,0.55,3942.4,3942.3,0.25]
[1734023918717,0.55,3942.4,3942.3,0.5]
[1734023919417,0.83068247,3942.4,3942.3,0.5]
[1734023919621,2.0080681,3942.4,3942.3,0.5]
[1734023920124,3.25421124,3942.4,3942.3,0.5]
[1734023921404,2.0080681,3942.4,3942.3,0.5]
[1734023921585,3.25407754,3942.4,3942.3,0.5]
[1734023921787,2.0080681,3942.4,3942.3,0.5]
[1734023922202,2.00811764,3942.4,3942.3,0.5]
[1734023922450,0.01427865,3942.5,3942.3,0.5]
[1734023922451,0.55,3942.5,3942.3,0.5]
[1734023922719,0.55,3942.5,3940.4,4.06061244]
[1734023922720,4.86989517,3943.1,3942.8,0.25]
[1734023922882,3.8309229,3943.0,3942.8,0.25]
[1734023923079,1.05399517,3943.1,3942.8,0.5]
[1734023923283,2.07741281,3943.1,3942.8,0.5]
[1734023923512,1.65899621,3943.0,3942.8,0.5]
[1734023923709,0.82803744,3943.0,3942.8,0.5]
[1734023924020,0.55,3942.9,3942.8,0.5]
[1734023924224,0.55,3942.9,3942.8,0.25]
[1734023924387,5.17912528,3942.9,3942.8,0.25]
[1734023924722,9.29621161,3942.9,3942.8,0.25]
[1734023924954,9.28193296,3942.9,3942.8,0.25]
[1734023925144,7.70019787,3942.9,3942.8,0.25]
[1734023925358,9.28193296,3942.9,3942.8,0.25]
[1734023926051,8.75480918,3942.9,3942.8,0.25]
[1734023926211,7.70019787,3942.9,3942.8,0.25]
[1734023926523,7.70152717,3942.9,3942.8,0.25]
[1734023926747,8.75643541,3942.9,3942.8,0.25]
[1734023926938,7.70152717,3942.9,3942.8,0.25]
[1734023927923,5.67040964,3942.9,3942.8,0.5]
[1734023928285,7.97285685,3942.9,3942.8,0.25]
[1734023928542,7.97285685,3942.9,3942.8,0.5]
[1734023928849,0.54405628,3942.9,3942.8,0.5]
[1734023928987,1.0549225,3943.4,3943.3,0.25]
[1734023929194,0.83201078,3943.4,3943.3,0.25]
[1734023929528,1.64541078,3943.4,3943.3,0.25]
[1734023929835,0.83217988,3943.4,3943.3,0.25]
[1734023930000,2.34040363,3943.4,3943.3,0.25]
[1734023930199,2.34040363,3943.4,3943.2,0.25]
[1734023930200,3.58857506,3943.4,3943.2,0.25]
[1734023930400,3.95606423,3943.3,3942.8,0.6743]
[1734023930625,1.10977911,3943.0,3942.8,0.4243]
[1734023930826,1.10977911,3943.0,3942.2,0.8002]
[1734023930827,3.01427865,3942.9,3942.5,0.25]
[1734023931038,9.05621855,3942.8,3942.7,0.25]
[1734023931396,0.55,3942.6,3942.5,0.25]
[1734023931694,2.96371425,3942.6,3942.2,0.25]
[1734023932008,7.22592312,3942.5,3942.4,0.25]
[1734023932204,7.21164447,3942.5,3942.4,0.25]
[1734023932402,8.60554315,3942.5,3942.4,0.25]
[1734023932628,7.02380806,3942.5,3942.4,0.25]
[1734023932830,8.07895624,3942.5,3942.4,0.25]
[1734023933891,7.02380806,3942.5,3942.4,0.25]
[1734023934096,7.02380806,3942.5,3942.4,0.5]
[1734023934918,8.07895624,3942.5,3942.4,0.5]
[1734023935096,8.07824077,3942.5,3942.4,0.25]
[1734023935618,8.07824077,3942.5,3942.4,0.5]
[1734023936034,8.07824077,3942.5,3942.4,0.25]
[1734023936342,8.07824077,3942.5,3942.4,0.5]
[1734023937226,8.07852023,3942.5,3942.4,0.5]
[1734023937570,7.80829259,3942.5,3942.4,0.25]
[1734023937737,9.39002768,3942.5,3942.4,0.25]
[1734023937916,9.39002768,3942.5,3942.2,0.5]
[1734023938096,5.6303127,3942.4,3942.2,0.25]
[1734023938298,6.68581775,3942.3,3942.2,0.25]
[1734023938838,6.68588772,3942.3,3942.2,0.25]
[1734023939434,6.68613952,3942.3,3942.2,0.25]
[1734023939737,3.55,3942.2,3942.0,0.25]
[1734023939902,0.55,3942.0,3941.9,0.25]
[1734023940097,2.43786903,3942.0,3941.9,0.25]
[1734023940511,2.43786903,3942.0,3939.8,4.06061244]
[1734023940512,0.55,3941.8,3941.6,0.5]
[1734023940809,0.55,3941.6,3941.4,0.5]
[1734023941024,1.3822258,3941.5,3941.4,0.5]
[1734023941209,0.55,3941.5,3941.4,1.3155]
[1734023941421,0.46055947,3941.5,3941.4,0.5]
[1734023941750,3.55,3941.4,3941.0,0.25]
[1734023941919,3.55,3941.4,3940.8,0.25]
[1734023941920,3.55,3941.2,3940.8,0.25]
[1734023942125,3.55,3941.0,3940.5,0.25]
[1734023942325,3.55,3940.7,3940.6,0.25]
[1734023942631,3.55,3940.7,3940.5,0.25]
[1734023942632,8.53746928,3940.7,3940.5,0.25]
[1734023942818,5.64448836,3940.6,3940.5,0.25]
[1734023943028,6.68495046,3940.6,3940.5,0.25]
[1734023943216,5.63020971,3940.6,3940.5,0.25]
[1734023943441,3.55,3940.6,3940.5,0.25]
[1734023943643,1.21881819,3940.6,3940.5,0.25]
[1734023943852,1.38119481,3940.6,3940.5,0.25]
[1734023944078,6.68288657,3940.6,3940.5,0.25]
[1734023944290,3.55,3940.5,3940.4,0.25]
[1734023944545,4.39547346,3940.5,3940.4,0.25]
[1734023944759,5.41654452,3940.5,3940.2,0.25]
[1734023944963,4.58534971,3940.5,3940.2,0.25]
[1734023945105,4.58534971,3940.5,3940.1,0.5]
[1734023945312,1.57107106,3940.5,3940.4,0.25]
[1734023946267,1.58534971,3940.5,3940.4,0.25]
[1734023946453,1.58534971,3940.5,3940.2,0.25]
[1734023946629,0.55,3940.3,3940.2,0.25]
[1734023948252,0.56427865,3940.3,3939.8,0.25]
[1734023948460,0.55,3940.1,3939.8,0.25]
[1734023948622,0.55,3940.1,3940.0,0.25]
[1734023948971,3.55,3940.1,3939.6,0.25]
[1734023949132,0.55,3939.9,3939.6,0.25]
[1734023949309,0.55,3939.9,3939.5,0.25]
[1734023949513,0.55,3939.9,3939.6,0.25]
[1734023949935,0.55,3939.9,3939.3,0.25]
[1734023949936,3.55,3939.7,3939.4,0.25]
[1734023950536,0.01427865,3939.6,3939.1,0.25]
[1734023950737,0.55,3939.4,3939.1,0.25]
[1734023951116,3.19607526,3939.8,3936.6,1.18462234]
[1734023951117,0.67620753,3940.0,3939.9,0.25]
[1734023951548,0.45853497,3940.4,3940.1,0.25]
[1734023951720,0.14288023,3940.3,3940.1,0.25]
[1734023952253,0.12860158,3940.3,3940.1,0.25]
[1734023952832,0.55,3940.2,3940.1,0.25]
[1734023955434,0.12860158,3940.3,3940.1,0.25]
[1734023955633,0.12860158,3940.3,3940.2,0.8063]
[1734023956075,0.12858891,3940.9,3940.8,0.25]
[1734023957451,0.01427865,3941.5,3941.4,0.25]
[1734023957670,0.82447865,3941.6,3941.4,0.25]
[1734023958804,0.55,3941.5,3941.4,0.25]
[1734023959843,0.7904,3941.4,3941.0,0.25]
[1734023960044,3.0,3941.2,3940.2,0.7657]
[1734023960283,1.24034404,3941.1,3940.6,0.25]
[1734023960647,1.24034404,3941.1,3940.9,0.25]
[1734023962757,0.773,3941.0,3938.4,0.82562643]
[1734023962955,0.56427865,3940.9,3938.4,0.8035]
[1734023964443,2.97025391,3940.9,3938.4,0.8035]
[1734023964776,0.55,3940.7,3938.4,0.8035]
[1734023964986,0.01427865,3940.6,3938.4,0.8035]
[1734023965683,0.55,3940.4,3938.4,0.8035]
[1734023965884,0.01427865,3940.3,3938.4,0.8035]
[1734023966944,0.7561,3940.1,3938.4,0.8035]
[1734023967139,0.99488865,3940.0,3938.4,0.8035]
[1734023968347,3.0,3939.9,3938.4,0.8035]
[1734023968609,0.55,3939.6,3938.4,0.8035]
[1734023968821,0.01427865,3939.5,3938.4,0.8035]
[1734023970002,0.55,3939.6,3938.4,0.8035]
[1734023970296,0.55,3939.6,3938.6,0.8045]
[1734023970297,0.01427865,3939.6,3938.6,0.8045]
[1734023970467,0.01427865,3940.1,3938.6,0.8045]
[1734023971127,0.12668959,3939.5,3938.6,0.8045]
[1734023972693,0.01427865,3940.1,3938.6,0.8045]
[1734023973004,0.81777865,3940.7,3938.7,0.7934]
[1734023974014,0.15977162,3939.0,3938.7,0.7934]
[1734023978192,0.15977162,3939.0,3937.6,0.25]
[1734023978366,0.15977162,3939.0,3937.7,0.7832]
[1734023979295,0.55,3938.9,3937.7,0.7832]
[1734023979494,0.55,3938.7,3937.7,0.7832]
[1734023979657,0.55,3938.5,3937.7,0.7832]
[1734023981492,0.56427865,3938.5,3937.7,0.7832]
[1734023982585,0.56427865,3938.5,3936.4,1.06061244]
[1734023982802,0.56427865,3938.5,3936.6,0.7508]
[1734023983404,0.55,3938.3,3936.6,0.7508]
[1734023983798,0.55,3938.5,3936.6,0.7508]
[1734023984035,0.55,3938.5,3936.6,0.25]
[1734023984185,0.56427865,3938.5,3936.8,0.8094]
[1734023984616,0.55,3938.5,3937.0,0.7989]
[1734023985712,0.7971,3938.8,3936.7,1.06061244]
[1734023985713,0.55,3938.7,3937.2,0.7989]
[1734023985912,0.55,3938.7,3937.0,0.7983]
[1734023985913,0.16315366,3938.7,3937.0,0.7983]
[1734023986099,0.55,3938.6,3937.2,0.7983]
[1734023986311,0.01427865,3938.6,3937.2,0.7983]
[1734023986623,0.01427865,3938.8,3937.2,0.7983]
[1734023987249,3.01427865,3938.8,3937.2,0.7983]
[1734023987458,1.38315055,3938.7,3937.2,0.7983]
[1734023987595,0.55,3938.5,3937.2,0.7983]
[1734023987927,0.01427865,3938.4,3937.2,0.7983]
[1734023992258,0.55,3938.5,3937.2,0.7983]
[1734023993061,0.01427865,3938.4,3937.2,0.7983]
[1734023993427,0.55,3938.5,3937.2,0.7983]
[1734023993623,0.55,3938.3,3937.2,0.7983]
[1734023994074,0.01427865,3938.2,3937.2,0.7983]
[1734023994942,0.55,3938.5,3937.2,0.7983]
[1734023994943,0.01427865,3938.4,3937.2,0.7983]
[1734023995660,0.55,3938.0,3937.2,0.7983]
[1734023996653,0.01427865,3937.9,3937.2,0.7983]
[1734023997470,0.55,3938.0,3937.2,0.7983]
[1734023999894,0.01427865,3937.9,3937.2,0.7983]
[1734024000074,0.55,3937.7,3937.2,0.7983]
[1734024000269,0.01427865,3937.6,3935.5,0.8266]
[1734024001258,0.55,3937.4,3935.5,0.8266]
[1734024001451,0.01427865,3937.3,3935.5,0.8266]
[1734024001648,0.55,3937.1,3935.5,0.8266]
[1734024002499,0.01427865,3937.0,3935.5,0.8266]
[1734024003788,0.15977162,3935.9,3935.5,0.8266]
[1734024005041,0.15977162,3935.9,3934.7,0.7992]
[1734024005042,0.55,3935.8,3934.7,0.7992]
[1734024005159,0.01427865,3935.7,3934.7,0.7992]
[1734024005969,0.798,3935.6,3934.7,0.7992]
[1734024006172,0.70050652,3935.5,3934.7,0.7992]
[1734024006397,0.68622787,3935.5,3934.7,0.7992]
[1734024006896,0.70050652,3935.5,3934.7,0.7992]
[1734024008559,0.70050652,3935.5,3934.3,0.7723]
[1734024008902,0.13622787,3935.5,3934.3,0.7723]
[1734024009093,0.15977162,3935.9,3932.5,3.0]
[1734024009094,0.15977162,3935.9,3934.1,0.7723]
[1734024009294,0.15977162,3935.9,3934.5,0.7723]
[1734024009467,0.15977162,3935.9,3934.4,0.7723]
[1734024013997,0.15977162,3935.9,3934.6,0.8091]
[1734024014199,0.15977162,3935.9,3934.9,0.8091]
[1734024014599,0.15977162,3935.9,3935.1,0.8091]
[1734024014907,0.15977162,3935.9,3935.4,0.7864]
[1734024015064,0.15977162,3935.9,3935.4,0.8118017]
[1734024015898,0.15977162,3935.9,3935.4,0.7864]
[1734024018276,0.15977162,3935.9,3935.4,0.81180165]
[1734024018517,0.15977162,3935.9,3935.4,0.7864]
[1734024019684,0.15977162,3935.9,3935.4,0.02540407]
[1734024019913,0.15977162,3935.9,3935.5,0.7748]
[1734024025395,0.55,3935.8,3935.5,0.7748]
[1734024025728,0.55,3935.8,3935.2,0.7939]
[1734024025929,0.55,3935.8,3934.4,0.7939]
[1734024026093,0.69831716,3935.8,3934.4,0.7939]
[1734024027831,0.55,3935.8,3934.4,0.7939]
[1734024027993,0.55,3935.8,3934.6,0.7818]
[1734024028400,0.15977162,3935.9,3934.7,0.8411077]
[1734024029563,0.15977162,3935.9,3934.9,0.8091]
[1734024029848,0.15977162,3935.9,3935.1,0.8091]
[1734024029996,0.15977162,3935.9,3935.3,0.8091]
[1734024030195,0.1567175,3935.9,3935.5,0.8091]
[1734024037766,0.1567175,3935.9,3935.6,0.02539839]
[1734024037909,0.1567175,3935.9,3935.7,0.02539515]
[1734024038110,0.1567175,3935.9,3935.6,0.02539515]
[1734024038637,0.1567175,3935.9,3935.5,0.8091]
[1734024041704,0.1567175,3935.9,3935.2,0.7528]
[1734024041905,0.1567175,3935.9,3935.3,2.19059201]
[1734024042110,0.1567175,3935.9,3935.2,0.7528]
[1734024042410,0.1567175,3935.9,3935.3,0.8762531]
[1734024042642,0.1567175,3935.9,3935.2,0.7528]
[1734024042903,0.1567175,3935.9,3935.3,2.19107978]
[1734024043220,0.1567175,3935.9,3935.2,0.7528]
[1734024043381,0.1567175,3935.9,3935.3,2.1911913]
[1734024044313,0.1567175,3935.9,3935.4,0.87660644]
[1734024044507,0.1567175,3935.9,3935.2,1.81341244]
[1734024044715,0.1567175,3935.9,3935.3,2.19192598]
[1734024044913,0.1567175,3935.9,3935.4,2.19191739]
[1734024045081,0.1567175,3935.9,3935.5,2.21731837]
[1734024045282,0.1567175,3935.9,3935.6,2.19191739]
[1734024045580,0.1567175,3935.9,3935.7,0.87677039]
[1734024045781,0.1567175,3935.9,3935.5,0.02540098]
[1734024046013,0.1567175,3935.9,3935.5,1.08601342]
[1734024046175,0.1567175,3935.9,3935.6,2.19220035]
[1734024046376,0.1567175,3935.9,3935.7,0.87688014]
[1734024046609,0.1567175,3935.9,3935.4,1.06061244]
[1734024046809,0.1567175,3935.9,3935.5,1.31534777]
[1734024047011,0.1567175,3935.9,3935.6,2.19224628]
[1734024047212,0.1567175,3935.9,3935.7,0.87689851]
[1734024047434,0.1567175,3935.9,3935.5,1.06061244]
[1734024047579,0.1567175,3935.9,3935.6,2.19229462]
[1734024047781,0.1567175,3935.9,3935.7,0.87691785]
[1734024048024,0.1567175,3935.9,3935.5,1.0832]
[1734024048342,0.1567175,3935.9,3935.8,2.10481244]
[1734024048503,0.1567175,3935.9,3935.8,11.08190608]
[1734024048720,0.1567175,3935.9,3935.8,12.90213564]
[1734024049016,0.8073,3938.2,3936.5,0.7948]
[1734024049177,0.8073,3938.2,3936.9,0.7948]
[1734024049378,0.8073,3938.2,3937.0,2.19101942]
[1734024049581,0.8073,3938.2,3937.1,2.19101942]
[1734024049885,0.8073,3938.2,3937.2,2.19101942]
[1734024050104,0.8073,3938.2,3937.3,0.87605087]
[1734024050389,0.8073,3938.2,3937.3,2.5398]
[1734024053116,0.8073,3938.2,3937.3,2.5651888]
[1734024053323,0.55,3939.1,3937.4,0.8292]
[1734024053495,0.55,3939.1,3937.5,0.02538856]
[1734024053692,0.55,3939.1,3937.5,2.56508856]
[1734024054222,0.55,3938.9,3937.5,2.5397]
[1734024055576,0.8266,3939.0,3937.5,2.5397]
[1734024055779,0.55,3938.8,3937.5,2.5397]
[1734024057085,0.55,3938.9,3937.6,0.02538833]
[1734024057322,0.55,3938.9,3937.6,2.56498833]
[1734024057534,0.55,3938.9,3937.6,2.5396]
[1734024057733,0.01427865,3938.8,3937.6,2.5396]
[1734024057881,0.55,3938.6,3937.6,2.5396]
[1734024059032,0.8217,3938.7,3937.6,2.5396]
[1734024059326,1.58203046,3940.1,3937.6,2.5396]
[1734024059327,0.7707,3939.5,3937.8,0.7937]
[1734024059555,0.7707,3939.5,3938.0,0.7937]
[1734024059688,0.7707,3939.5,3938.1,0.02538263]
[1734024059880,0.7707,3939.5,3938.1,2.56468263]
[1734024060582,0.55,3939.4,3938.1,2.56468263]
[1734024060785,0.55,3939.2,3938.1,2.56468263]
[1734024060987,0.55,3938.9,3938.1,2.5393]
[1734024061524,0.7923,3938.8,3938.1,2.5393]
[1734024061734,0.55,3938.7,3938.1,2.5393]
[1734024062037,0.13207,3939.4,3938.1,2.5393]
[1734024062038,0.55,3938.3,3938.1,2.5393]
[1734024062205,3.0,3939.1,3938.1,2.5393]
[1734024062206,1.3423,3938.2,3938.1,2.5393]
[1734024062537,1.3423,3938.2,3936.0,1.06007788]
[1734024062538,0.55,3937.9,3936.4,0.8026]
[1734024065210,0.55,3937.9,3936.5,0.02539635]
[1734024065411,0.55,3937.9,3936.6,0.8064]
[1734024065619,0.55,3937.9,3936.5,0.02539635]
[1734024065620,0.7642,3938.5,3936.8,0.8064]
[1734024065846,0.7642,3938.5,3936.9,0.83179027]
[1734024065999,0.7642,3938.5,3937.0,0.7741]
[1734024066201,0.13207,3939.4,3937.2,0.7741]
[1734024066527,1.05483145,3939.9,3937.2,0.7741]
[1734024066528,0.83,3939.3,3937.4,0.7741]
[1734024066855,0.83,3939.3,3937.5,0.02538728]
[1734024067002,0.83,3939.3,3937.5,2.56508728]
[1734024067644,0.83,3939.3,3937.5,2.5397]
[1734024067800,0.76887865,3939.2,3937.5,2.5397]
[1734024068124,0.7546,3939.0,3937.5,2.5397]
[1734024068546,0.55,3938.9,3937.5,2.5397]
[1734024071757,0.55,3938.9,3937.6,0.84738858]
[1734024071958,0.55,3938.9,3937.6,3.3616]
[1734024073230,0.55,3938.9,3937.7,0.02538859]
[1734024073535,0.55,3939.3,3937.8,0.7832]
[1734024073859,0.55,3939.3,3937.9,0.80858612]
[1734024074068,0.7843,3939.4,3937.9,3.34798612]
[1734024074367,0.7843,3940.4,3938.1,0.7832]
[1734024074525,0.7843,3940.2,3938.2,0.02538338]
[1734024074859,0.7843,3940.2,3938.2,2.56458338]
[1734024075022,0.12533084,3940.0,3938.2,2.56458338]
[1734024075223,0.7843,3939.9,3938.2,2.56458338]
[1734024075418,0.7843,3939.9,3938.2,2.5392]
[1734024075647,0.55,3939.6,3938.2,2.5392]
[1734024075847,0.7843,3939.3,3938.2,2.5392]